bitfinex-derivatives/quotes_ETHF0:USTF0_20240905
["timestamp","ask_amount","ask_price","bid_price","bid_amount"]
[1725548998588,0.42,2381.1,2380.8,0.42004]
[1725548998896,0.42,2381.1,2380.6,3.5]
[1725548998897,2.0273982,2381.1,2380.6,3.5]
[1725548999081,0.42,2381.1,2380.8,0.42004]
[1725548999285,1.6073982,2381.2,2380.6,3.5]
[1725548999483,1.6073982,2381.3,2381.1,0.41999]
[1725548999686,0.41998,2381.2,2380.6,4.55017]
[1725548999883,0.41998,2381.2,2381.0,0.42]
[1725549000397,0.42,2381.1,2380.9,0.42002]
[1725549000592,1.6073982,2381.2,2380.6,3.5]
[1725549000790,6.63608292,2381.4,2381.2,0.41997]
[1725549000791,1.6073982,2381.3,2381.2,0.41997]
[1725549000987,6.0974982,2381.4,2381.3,0.41995]
[1725549001187,3.2078,2381.4,2381.3,0.41995]
[1725549001392,1.3873,2381.5,2381.4,0.41994]
[1725549001588,0.00629564,2381.6,2381.5,0.41992]
[1725549002690,0.00629564,2381.6,2381.5,1.46973]
[1725549003009,0.00629564,2381.6,2381.5,14.48912]
[1725549003296,0.00629564,2381.6,2381.5,8.48912]
[1725549003996,0.00629564,2381.6,2381.5,7.78992]
[1725549004386,0.00629564,2381.6,2381.5,3.91992]
[1725549004694,0.00629564,2381.6,2381.5,14.11912]
[1725549004997,1.4208,2382.1,2382.0,0.41983]
[1725549005199,1.6073982,2382.5,2382.0,0.21312894]
[1725549005494,1.6073982,2382.5,2381.7,3.2078]
[1725549005495,1.6073982,2382.2,2381.7,3.2078]
[1725549005693,1.6073982,2382.2,2381.5,3.5]
[1725549005694,0.41986,2381.9,2381.5,3.5]
[1725549005994,0.41986,2381.9,2381.5,0.00629564]
[1725549005995,0.00629564,2381.9,2381.5,0.00629564]
[1725549006197,0.00629564,2381.9,2381.5,0.42621564]
[1725549006198,1.61369384,2381.9,2381.5,0.42621564]
[1725549006386,3.34904384,2381.9,2381.5,0.00629564]
[1725549006590,2.92919384,2381.9,2381.5,0.00629564]
[1725549006788,2.92919384,2381.9,2381.5,0.42620564]
[1725549006989,1.32179564,2381.9,2381.7,0.41988]
[1725549007193,1.32179564,2381.9,2381.5,0.00629564]
[1725549007395,2.92919384,2381.9,2381.5,0.00629564]
[1725549007699,0.4199,2381.6,2381.5,0.00629564]
[1725549007995,6.93613999,2381.7,2380.8,1.3988]
[1725549008195,4.81685938,2381.4,2380.9,0.42002]
[1725549008396,4.81685938,2381.4,2381.0,0.42]
[1725549008397,5.23680938,2381.4,2381.0,0.42]
[1725549008894,5.23680938,2381.4,2380.7,3.5]
[1725549008895,0.41997,2381.2,2380.9,0.42002]
[1725549009086,1.3472,2381.3,2380.7,7.37]
[1725549009289,3.2078,2381.4,2380.7,7.37]
[1725549009493,3.2078,2381.4,2381.0,0.41999]
[1725549009686,3.2078,2381.4,2380.7,7.37]
[1725549010093,3.2078,2381.4,2381.1,0.41998]
[1725549010289,3.2078,2381.4,2381.2,0.41997]
[1725549010502,3.2078,2381.4,2381.1,0.41998]
[1725549010693,2.02900938,2381.3,2380.8,0.42004]
[1725549011393,1.60905938,2381.5,2381.2,0.41996]
[1725549011594,1.60905938,2381.6,2380.7,4.92016]
[1725549011798,4.33325938,2381.7,2381.5,0.41992]
[1725549012004,4.33325938,2381.7,2381.6,0.4199]
[1725549012005,1.3753,2381.7,2381.6,0.4199]
[1725549012592,5.5737,2381.7,2381.1,1.3066]
[1725549012795,1.79519,2381.7,2381.3,0.41994]
[1725549012994,1.79519,2381.7,2381.2,0.41996]
[1725549013199,3.40424938,2381.7,2381.2,0.41996]
[1725549013403,1.79519,2381.7,2381.3,0.41995]
[1725549013609,1.79519,2381.7,2381.3,0.41994]
[1725549013908,0.00629564,2381.9,2381.4,4.1992]
[1725549014212,0.00629564,2381.9,2381.8,0.41987]
[1725549015297,0.00629564,2381.9,2381.7,0.63072843]
[1725549015492,0.00629564,2381.9,2381.8,0.41987]
[1725549016306,0.00629564,2381.9,2381.6,0.41989]
[1725549016499,0.00629564,2381.9,2381.5,0.41992]
[1725549016500,0.42615564,2381.9,2381.5,0.41992]
[1725549016693,0.00629564,2381.9,2381.6,0.4199]
[1725549017205,0.00629564,2381.9,2381.3,0.22643725]
[1725549017398,0.41988,2381.8,2381.4,0.41992]
[1725549017593,0.41988,2381.8,2381.0,6.31981]
[1725549017811,5.24301502,2381.9,2381.5,0.41991]
[1725549018001,0.00629564,2381.9,2381.2,1.04992]
[1725549018197,0.00629564,2381.9,2381.8,0.41987]
[1725549018403,0.00629564,2381.9,2381.3,4.91989]
[1725549018706,0.42614564,2381.9,2381.6,0.4199]
[1725549018899,0.00629564,2381.9,2381.6,0.41989]
[1725549019101,0.00629564,2381.9,2381.8,0.41987]
[1725549019302,0.00629564,2381.9,2381.7,0.41987]
[1725549019602,0.00629564,2381.9,2381.7,0.41988]
[1725549020507,4.1984,2381.8,2381.2,0.41997]
[1725549020707,3.2078,2381.6,2381.1,3.2078]
[1725549020907,3.2078,2381.6,2381.0,0.42]
[1725549021108,0.41994,2381.4,2381.1,0.41999]
[1725549021414,1.78253,2381.5,2381.1,0.41998]
[1725549021718,0.41994,2381.4,2381.1,0.41998]
[1725549022011,3.2078,2381.3,2380.7,0.2232594]
[1725549022314,3.62776,2381.3,2380.6,12.1647]
[1725549022512,3.2078,2381.3,2381.0,0.42]
[1725549022711,3.2078,2381.3,2380.6,12.1647]
[1725549022712,3.2078,2381.3,2381.1,0.41998]
[1725549023014,2.97165938,2381.5,2380.8,3.87]
[1725549023219,3.2078,2381.6,2380.9,1.05003]
[1725549023400,6.11285938,2381.7,2380.9,4.25783]
[1725549023606,6.53274938,2381.7,2380.9,4.25783]
[1725549023807,3.62775,2381.4,2381.0,0.42]
[1725549024108,0.41998,2381.2,2380.8,0.42004]
[1725549024315,3.44631938,2381.3,2380.9,0.42002]
[1725549024702,3.44631938,2381.3,2380.6,4.8529]
[1725549024703,0.41997,2381.2,2380.6,5.07579355]
[1725549025010,5.23684938,2381.1,2380.7,0.42005]
[1725549025217,4.81685938,2381.1,2380.6,1.77297]
[1725549025420,4.81685938,2381.1,2380.5,0.21143061]
[1725549025611,5.23684938,2381.1,2380.7,0.42005]
[1725549025806,4.81685938,2381.1,2380.8,0.42004]
[1725549026207,4.81685938,2381.1,2380.6,3.5]
[1725549026412,4.81685938,2381.1,2380.8,0.42004]
[1725549026609,5.23684938,2381.1,2380.7,0.42005]
[1725549026816,1.3276,2381.0,2380.8,0.42004]
[1725549027122,1.60905938,2381.1,2381.0,0.42001]
[1725549027310,1.60905938,2381.3,2381.0,0.42001]
[1725549027615,4.81685938,2381.5,2381.3,0.41995]
[1725549027919,3.47301251,2381.6,2381.0,3.87]
[1725549027920,2.93665938,2381.6,2381.0,3.87]
[1725549028116,1.60905938,2381.4,2381.1,0.41998]
[1725549028416,4.81685938,2381.5,2380.9,3.62782]
[1725549028621,1.60905938,2381.3,2381.0,0.42]
[1725549028817,2.02901938,2381.3,2380.9,0.42002]
[1725549029006,2.02901938,2381.3,2380.7,4.104]
[1725549029007,1.60905938,2381.3,2381.0,0.42]
[1725549029219,3.6278,2381.1,2380.7,4.52405]
[1725549029510,3.6278,2381.1,2380.7,0.42005]
[1725549029511,1.4295,2381.0,2380.7,0.42005]
[1725549029910,1.84951,2381.0,2380.7,0.42006]
[1725549030105,1.84951,2381.0,2380.6,0.42007]
[1725549030514,3.45856938,2381.0,2380.6,0.42007]
[1725549030715,3.45856938,2381.0,2380.7,0.42006]
[1725549030716,3.03855938,2381.0,2380.7,0.42006]
[1725549030911,3.03855938,2381.0,2380.8,0.42004]
[1725549031111,1.60905938,2381.1,2380.7,3.87]
[1725549031315,1.60905938,2381.3,2381.2,0.41997]
[1725549031512,1.4014,2381.5,2381.4,0.41994]
[1725549031815,1.60905938,2381.8,2381.6,0.4199]
[1725549032408,1.60969142,2381.8,2381.7,0.41988]
[1725549032619,1.60969142,2381.8,2381.5,0.41991]
[1725549032620,3.2078,2381.8,2381.5,0.41991]
[1725549032920,1.60999061,2381.7,2381.6,0.4199]
[1725549033420,2.15170815,2381.9,2381.7,0.41988]
[1725549033421,1.61628625,2381.9,2381.7,0.41988]
[1725549033917,1.61628625,2381.9,2381.6,0.41989]
[1725549034223,1.61628625,2381.9,2381.8,0.41987]
[1725549034416,0.00629564,2381.9,2381.8,0.41987]
[1725549034622,0.00629564,2381.9,2381.8,4.61827]
[1725549034812,0.00629564,2381.9,2381.8,0.41987]
[1725549035513,0.00629564,2381.9,2381.7,0.41988]
[1725549035720,0.00629564,2381.9,2381.6,3.62769]
[1725549035914,0.00629564,2381.9,2381.7,0.41987]
[1725549036221,0.00629564,2381.9,2381.5,0.41991]
[1725549036419,3.2078,2381.8,2381.0,4.104]
[1725549036611,3.2078,2381.8,2381.0,3.87]
[1725549036612,4.5514,2381.8,2381.0,3.87]
[1725549036820,4.5514,2381.8,2381.4,0.41993]
[1725549037013,4.5514,2381.8,2381.0,3.87]
[1725549037414,0.41989,2381.7,2381.3,0.41994]
[1725549037926,0.41989,2381.7,2381.0,3.87]
[1725549037927,0.41989,2381.7,2381.2,0.41996]
[1725549038226,0.00629564,2381.9,2381.8,0.41987]
[1725549040120,0.00629564,2381.9,2381.8,5.88246872]
[1725549040320,1.3758,2382.5,2381.9,1.04963]
[1725549040623,1.3758,2382.5,2382.4,0.41976]
[1725549041016,2.14541251,2382.8,2382.6,0.41972]
[1725549041222,2.14541251,2382.8,2382.2,1.0495]
[1725549041223,2.14541251,2382.9,2382.7,0.41971]
[1725549041418,2.14541251,2382.9,2382.3,0.21389868]
[1725549041419,0.00629564,2382.9,2382.8,0.41969]
[1725549046224,0.00629564,2382.9,2382.7,0.4197]
[1725549046419,0.00629564,2382.9,2382.8,0.41969]
[1725549047427,0.00629564,2382.9,2382.5,3.21409564]
[1725549047629,3.62752,2382.7,2382.5,0.00629564]
[1725549048126,1.77293,2382.6,2382.5,0.00629564]
[1725549048331,5.96973,2382.6,2382.5,0.00629564]
[1725549048527,7.29523,2382.6,2382.5,0.00629564]
[1725549049828,6.8755,2382.6,2382.5,0.00629564]
[1725549050330,2.6787,2382.6,2382.5,0.00629564]
[1725549050528,0.00629564,2382.9,2382.5,0.00629564]
[1725549050726,0.41973,2382.6,2382.5,0.00629564]
[1725549051126,5.96303,2382.6,2382.5,0.00629564]
[1725549051739,5.96303,2382.6,2382.0,0.41982]
[1725549051740,0.41979,2382.3,2382.0,0.41982]
[1725549051922,4.6357,2382.2,2382.1,0.41981]
[1725549052933,9.2531,2382.2,2381.7,4.104]
[1725549053231,9.2531,2382.2,2381.6,0.20805515]
[1725549053232,4.6357,2382.2,2382.0,0.41982]
[1725549054234,5.0555,2382.2,2381.9,0.41983]
[1725549054434,5.0555,2382.2,2381.6,0.20805515]
[1725549054734,5.0555,2382.2,2381.9,0.41984]
[1725549054928,5.0555,2382.2,2382.0,0.41983]
[1725549055129,9.2531,2382.2,2382.0,0.41983]
[1725549055440,9.2531,2382.2,2381.6,0.20805515]
[1725549055634,5.0555,2382.2,2381.6,0.20805515]
[1725549055835,5.0555,2382.2,2382.0,0.41983]
[1725549056335,9.2531,2382.2,2382.0,0.41982]
[1725549056537,9.2531,2382.2,2382.1,0.41981]
[1725549056538,3.2078,2382.2,2382.1,0.41981]
[1725549056735,2.855,2382.8,2382.1,1.04954]
[1725549057035,2.855,2382.8,2382.7,0.41971]
[1725549057230,2.855,2382.8,2382.6,0.41971]
[1725549057430,0.41973,2382.6,2382.1,4.104]
[1725549057636,0.41973,2382.6,2382.0,5.58927]
[1725549057939,6.0628,2382.8,2382.0,5.58926]
[1725549058241,2.855,2382.8,2382.2,4.9195]
[1725549058543,2.855,2382.8,2382.5,0.41973]
[1725549058544,3.27469,2382.8,2382.5,0.41973]
[1725549058840,3.27469,2382.8,2382.2,4.9195]
[1725549058841,2.855,2382.8,2382.6,0.41972]
[1725549059037,0.00629564,2382.9,2382.2,4.91946]
[1725549059233,0.42598564,2382.9,2382.5,0.41973]
[1725549059430,0.41969,2382.8,2382.5,0.41973]
[1725549059628,0.41969,2382.8,2382.4,0.41975]
[1725549059938,3.2078,2382.7,2382.0,5.4359]
[1725549060238,1.2826,2382.6,2382.5,0.41974]
[1725549060632,1.70233,2382.6,2382.3,0.41977]
[1725549060839,1.70233,2382.6,2382.0,1.3319]
[1725549060840,1.2826,2382.6,2382.0,1.3319]
[1725549061128,1.2826,2382.6,2381.7,11.1818]
[1725549061129,3.2078,2382.4,2381.7,11.1818]
[1725549061334,3.2078,2382.4,2381.8,0.41985]
[1725549061335,1.3477,2382.3,2381.8,0.41985]
[1725549061542,0.4198,2382.2,2381.8,0.41985]
[1725549062031,0.4198,2382.2,2381.9,0.41984]
[1725549062227,1.76748,2382.3,2381.9,0.41985]
[1725549062441,0.4198,2382.2,2381.7,3.2078]
[1725549062835,0.4198,2382.2,2381.8,0.41986]
[1725549063037,3.62762,2382.1,2381.7,3.62767]
[1725549063230,0.41991,2381.6,2381.4,4.104]
[1725549063441,0.41996,2381.3,2380.8,4.104]
[1725549063637,0.00629564,2381.3,2380.7,3.5]
[1725549063838,0.00629564,2381.3,2381.1,0.41998]
[1725549064036,0.00629564,2381.3,2381.2,0.41997]
[1725549064543,0.00629564,2381.3,2381.2,4.61917]
[1725549065347,0.00629564,2381.3,2381.2,0.41997]
[1725549065838,0.00629564,2381.3,2381.2,10.61917]
[1725549066943,0.00629564,2381.3,2381.2,0.41997]
[1725549067151,0.00629564,2381.3,2381.2,4.61917]
[1725549067750,0.00629564,2381.3,2381.2,14.87691]
[1725549067938,1.04943,2382.4,2381.2,14.87691]
[1725549067939,3.2078,2382.5,2382.3,0.41978]
[1725549068243,3.2078,2382.5,2381.8,1.04964]
[1725549068244,3.2078,2382.5,2382.1,0.4198]
[1725549068438,3.2078,2382.5,2382.2,0.41978]
[1725549068936,3.2078,2382.5,2382.2,3.5]
[1725549069146,3.2078,2382.5,2382.4,0.41976]
[1725549069944,0.00629564,2382.6,2382.5,0.41974]
[1725549070249,6.32521,2383.3,2383.0,0.41965]
[1725549070546,6.32521,2383.3,2382.5,7.04937]
[1725549070547,6.32521,2383.3,2382.5,5.15337]
[1725549070742,5.9056,2383.3,2383.1,0.41963]
[1725549070942,3.97911999,2383.6,2382.9,3.87]
[1725549070943,6.65371251,2383.6,2382.9,3.87]
[1725549071145,0.00629564,2383.5,2383.3,0.4196]
[1725549071342,0.00629564,2383.5,2383.2,0.21302647]
[1725549071550,0.00629564,2383.5,2383.0,0.00629564]
[1725549071551,3.2078,2383.3,2383.0,0.00629564]
[1725549071749,0.41964,2383.1,2383.0,0.00629564]
[1725549071949,4.196,2383.1,2383.0,0.00629564]
[1725549072144,1.387,2383.2,2383.0,0.00629564]
[1725549073353,0.41964,2383.1,2383.0,0.00629564]
[1725549073655,1.80663,2383.2,2383.0,0.00629564]
[1725549074051,1.387,2383.2,2383.0,0.00629564]
[1725549074848,1.387,2383.2,2383.0,0.42594564]
[1725549075055,1.387,2383.2,2383.0,0.00629564]
[1725549076254,4.61564,2383.1,2383.0,0.00629564]
[1725549076550,5.5978,2383.1,2383.0,0.00629564]
[1725549076753,1.4018,2383.1,2383.0,0.00629564]
[1725549077249,1.80663,2383.2,2383.0,0.00629564]
[1725549077250,1.387,2383.2,2383.0,0.00629564]
[1725549077548,1.387,2383.2,2383.0,0.42594564]
[1725549077749,5.583,2383.2,2383.0,0.00629564]
[1725549078144,1.387,2383.2,2383.0,0.00629564]
[1725549078347,1.387,2383.2,2383.1,0.41964]
[1725549078552,3.55350815,2383.5,2383.0,0.42593564]
[1725549078756,1.7436,2383.4,2383.0,0.42593564]
[1725549078955,1.324,2383.4,2383.0,0.00629564]
[1725549079148,1.324,2383.4,2383.2,0.41962]
[1725549079346,1.324,2383.4,2383.3,0.4196]
[1725549079548,1.40809564,2383.5,2383.4,0.41958]
[1725549079748,0.00629564,2383.5,2383.4,0.41958]
[1725549081451,0.00629564,2383.5,2383.4,14.48478]
[1725549081655,0.00629564,2383.5,2383.4,15.53375]
[1725549082053,0.00629564,2383.5,2383.4,14.48478]
[1725549082443,0.00629564,2383.5,2383.4,0.41958]
[1725549082644,0.00629564,2383.5,2383.2,0.20821699]
[1725549082844,0.00629564,2383.5,2383.4,0.41958]
[1725549083252,0.00629564,2383.5,2383.4,14.48478]
[1725549083453,0.00629564,2383.5,2383.4,17.98478]
[1725549083864,3.2078,2384.0,2383.8,0.41951]
[1725549084154,3.2078,2384.0,2383.7,0.41952]
[1725549084155,3.62728,2384.0,2383.7,0.41952]
[1725549084355,3.62728,2384.0,2383.6,0.41954]
[1725549084554,0.4195,2383.9,2383.5,0.41955]
[1725549084754,0.4195,2383.9,2383.4,3.5]
[1725549084755,0.00629564,2383.9,2383.4,3.5]
[1725549085056,0.42579564,2383.9,2383.5,0.41957]
[1725549085253,0.41952,2383.8,2383.5,0.41956]
[1725549085556,0.42580564,2383.9,2383.6,0.41955]
[1725549085761,0.41952,2383.8,2383.5,0.41956]
[1725549086058,0.41952,2383.8,2383.2,8.19717253]
[1725549086059,0.00629564,2383.9,2383.8,0.41951]
[1725549086956,0.00629564,2383.9,2383.7,0.41952]
[1725549087159,0.00629564,2383.9,2383.4,3.87]
[1725549087361,0.00629564,2383.9,2383.8,0.41951]
[1725549088457,0.42579564,2383.9,2383.7,0.41952]
[1725549088656,0.41957,2383.5,2383.2,4.104]
[1725549088853,0.41957,2383.5,2383.1,3.2078]
[1725549088854,0.41956,2383.6,2383.3,0.4196]
[1725549089055,0.41957,2383.5,2383.2,0.41961]
[1725549089564,0.41957,2383.5,2383.1,0.21401888]
[1725549089565,0.41957,2383.5,2383.3,0.4196]
[1725549089860,1.2794,2383.6,2383.1,0.21401888]
[1725549090360,1.69897,2383.6,2383.3,0.41959]
[1725549090755,0.41957,2383.5,2383.1,0.21401888]
[1725549090961,1.69896,2383.6,2383.3,0.4196]
[1725549091458,1.2794,2383.6,2383.4,0.41958]
[1725549091663,0.41957,2383.5,2383.2,0.41961]
[1725549091853,3.2078,2383.4,2383.0,0.00629564]
[1725549092054,0.41963,2383.2,2383.0,0.00629564]
[1725549092263,1.2981,2383.1,2383.0,0.00629564]
[1725549092560,1.2981,2383.1,2383.0,0.42595564]
[1725549092950,1.2794,2383.6,2383.0,0.00629564]
[1725549093147,1.2794,2383.6,2383.0,0.21946165]
[1725549093148,1.2981,2383.5,2383.0,0.21946165]
[1725549093352,1.2981,2383.5,2383.3,0.41959]
[1725549093660,1.2981,2383.5,2383.4,0.41958]
[1725549093959,1.2981,2383.5,2383.3,0.41959]
[1725549094349,1.2981,2383.5,2383.4,0.41958]
[1725549095353,1.2794,2383.6,2383.5,0.41957]
[1725549095854,1.29519564,2383.9,2383.3,1.04901]
[1725549096063,1.29519564,2383.9,2383.8,0.41951]
[1725549096452,1.29519564,2383.9,2383.7,0.41952]
[1725549096660,1.29519564,2383.9,2383.3,1.04901]
[1725549097059,1.29519564,2383.9,2383.7,0.41952]
[1725549097260,1.29519564,2383.9,2383.8,0.41951]
[1725549098857,1.29519564,2383.9,2383.5,3.2078]
[1725549099249,1.71469564,2383.9,2383.5,3.2078]
[1725549099450,1.29519564,2383.9,2383.8,0.41951]
[1725549099655,1.29519564,2383.9,2383.7,0.41952]
[1725549100256,1.29519564,2383.9,2383.5,3.2078]
[1725549100559,1.29519564,2383.9,2383.7,0.41952]
[1725549100755,1.71470564,2383.9,2383.6,0.41954]
[1725549100958,0.41954,2383.7,2383.4,0.41957]
[1725549101258,0.41956,2383.6,2383.3,0.41959]
[1725549101450,0.41957,2383.5,2383.0,0.21946165]
[1725549101652,0.41956,2383.6,2383.0,0.44395423]
[1725549101853,0.41956,2383.6,2383.0,0.00629564]
[1725549102056,3.2078,2383.8,2383.1,1.25873159]
[1725549102362,3.62732,2383.8,2383.5,0.41955]
[1725549102553,3.62732,2383.8,2383.2,4.91906]
[1725549102755,3.2078,2383.8,2383.3,1.04901]
[1725549102953,3.2078,2383.8,2383.6,0.41954]
[1725549103151,3.2078,2383.8,2383.7,0.41953]
[1725549103650,1.29519564,2383.9,2383.8,0.41951]
[1725549103858,1.29519564,2383.9,2383.7,0.41952]
[1725549104061,1.29519564,2383.9,2383.8,0.41951]
[1725549104761,0.00629564,2383.9,2383.8,0.41951]
[1725549106261,0.00629564,2383.9,2383.8,1.4683]
[1725549106761,0.00629564,2383.9,2383.8,0.41951]
[1725549108764,0.00629564,2383.9,2383.8,5.6635]
[1725549109164,0.00629564,2383.9,2383.8,9.92009]
[1725549109365,0.00629564,2383.9,2383.8,13.42009]
[1725549110363,0.00629564,2383.9,2383.8,19.42009]
[1725549110970,1.81338,2384.6,2384.3,0.41943]
[1725549110971,1.3919,2384.6,2384.3,0.41943]
[1725549111270,1.3919,2384.6,2384.5,0.41939]
[1725549112473,0.42563564,2384.8,2384.4,0.20921107]
[1725549112474,0.00629564,2384.8,2384.4,0.20921107]
[1725549112677,0.00629564,2384.8,2384.7,0.41936]
[1725549113070,0.00629564,2384.8,2384.5,0.21240033]
[1725549113370,0.00629564,2384.8,2384.3,3.87629564]
[1725549113570,0.00629564,2384.8,2384.6,0.41937]
[1725549113765,0.41937,2384.7,2384.3,0.21114247]
[1725549113967,0.41936,2384.7,2384.3,0.21114247]
[1725549114274,0.00629564,2384.8,2384.4,0.4194]
[1725549114275,0.42564564,2384.8,2384.4,0.4194]
[1725549114775,0.00629564,2384.8,2384.3,0.63055247]
[1725549115070,3.21409564,2384.8,2384.3,0.00629564]
[1725549115273,1.0484,2384.7,2384.3,0.00629564]
[1725549115576,0.41939,2384.6,2384.3,0.42571564]
[1725549116469,0.41936,2384.7,2384.3,3.42591187]
[1725549116977,3.21409564,2384.8,2384.3,0.00629564]
[1725549117170,0.41941,2384.4,2384.3,0.00629564]
[1725549117470,3.6272,2384.5,2384.3,0.00629564]
[1725549117669,3.2078,2384.6,2384.5,0.41938]
[1725549117873,0.41936,2384.7,2384.4,0.4194]
[1725549118074,0.41936,2384.7,2384.5,0.41938]
[1725549118372,2.15170815,2384.8,2384.5,0.41938]
[1725549118373,0.00629564,2384.8,2384.5,0.41938]
[1725549118583,2.57105815,2384.8,2384.5,0.41938]
[1725549118871,0.41937,2384.7,2384.5,0.41938]
[1725549119074,2.57105815,2384.8,2384.6,0.41937]
[1725549119576,0.42563564,2384.8,2384.6,0.41937]
[1725549120372,0.41936,2384.7,2384.5,0.41938]
[1725549120776,2.15170815,2384.8,2384.5,0.41939]
[1725549121170,0.41936,2384.7,2384.6,0.41937]
[1725549121373,0.41936,2384.7,2384.5,0.41939]
[1725549121773,4.1936,2384.6,2384.3,0.00629564]
[1725549121968,0.41941,2384.4,2384.3,0.00629564]
[1725549122482,7.82161,2384.4,2384.3,0.00629564]
[1725549122680,9.17461,2384.4,2384.3,0.00629564]
[1725549122976,0.00629564,2384.8,2384.4,1.04853]
[1725549123174,0.42564564,2384.8,2384.6,0.41936]
[1725549123371,0.00629564,2384.8,2384.3,0.00629564]
[1725549123678,0.41941,2384.4,2384.3,0.00629564]
[1725549124074,9.96702251,2384.4,2384.3,0.00629564]
[1725549124273,12.69492251,2384.4,2384.3,0.00629564]
[1725549124680,9.48712251,2384.4,2384.3,0.00629564]
[1725549124875,10.53565251,2384.4,2384.3,0.00629564]
[1725549125179,13.74345251,2384.4,2384.3,0.00629564]
[1725549125374,9.48712251,2384.4,2384.3,0.00629564]
[1725549125976,5.29272251,2384.4,2384.3,0.00629564]
[1725549126180,9.48712251,2384.4,2384.3,0.00629564]
[1725549126678,2.14541251,2384.6,2384.5,0.41939]
[1725549126977,2.14541251,2384.6,2384.4,0.4194]
[1725549127174,0.4194,2384.5,2384.3,0.00629564]
[1725549127473,6.73691251,2384.7,2384.6,0.41937]
[1725549127674,6.73691251,2384.7,2384.3,2.90629564]
[1725549127872,3.62721,2384.4,2384.3,0.00629564]
[1725549128277,9.96702251,2384.4,2384.3,0.00629564]
[1725549128875,0.41941,2384.4,2384.3,0.42572564]
[1725549129072,0.41941,2384.4,2384.3,0.00629564]
[1725549129468,5.77262251,2384.4,2384.3,0.00629564]
[1725549129673,5.35321251,2384.4,2384.3,0.42572564]
[1725549129882,3.2078,2384.4,2384.3,0.42572564]
[1725549130178,3.2078,2384.4,2384.3,0.00629564]
[1725549130179,11.01555251,2384.4,2384.3,0.00629564]
[1725549130482,9.9753925,2384.4,2384.3,0.00629564]
[1725549131080,1.0486,2384.3,2383.5,3.2078]
[1725549131279,1.0486,2384.3,2383.1,4.104]
[1725549131280,3.2078,2383.6,2383.1,4.104]
[1725549131486,0.41963,2383.2,2382.8,3.5]
[1725549131775,0.41963,2383.2,2382.6,17.9878]
[1725549131776,5.36069218,2383.2,2382.6,7.3118]
[1725549131982,5.78031218,2383.2,2382.8,0.41969]
[1725549132280,5.36698782,2383.2,2382.9,0.41967]
[1725549132479,5.36698782,2383.2,2382.8,0.42597564]
[1725549132480,5.78661782,2383.2,2382.8,0.42597564]
[1725549132778,5.36698782,2383.2,2383.1,0.41964]
[1725549132969,0.00629564,2383.2,2383.1,0.41964]
[1725549133171,0.00629564,2383.2,2383.0,0.41964]
[1725549133376,0.00629564,2383.2,2382.8,0.00629564]
[1725549133573,0.42591564,2383.2,2382.8,0.42597564]
[1725549133874,0.42591564,2383.2,2382.9,0.41967]
[1725549133875,0.00629564,2383.2,2382.9,0.41967]
[1725549134071,0.42591564,2383.2,2382.8,0.42597564]
[1725549134983,0.00629564,2383.2,2382.8,0.42597564]
[1725549135181,0.00629564,2383.2,2382.9,0.41967]
[1725549135683,0.00629564,2383.2,2383.1,0.41964]
[1725549136579,0.00629564,2383.2,2383.1,14.48564]
[1725549136785,5.36069218,2383.9,2383.1,15.82814]
[1725549136786,3.2078,2383.9,2383.1,15.82814]
[1725549136986,3.2078,2383.9,2383.6,0.41954]
[1725549137284,3.2078,2383.9,2383.5,0.41956]
[1725549137475,3.6273,2383.9,2383.4,4.28957]
[1725549137673,3.6273,2383.9,2383.4,0.41957]
[1725549137879,3.63359564,2383.9,2383.5,0.41957]
[1725549138074,3.21409564,2383.9,2383.5,0.41957]
[1725549138379,3.21409564,2383.9,2383.5,0.41956]
[1725549138581,0.00629564,2383.9,2383.6,0.41955]
[1725549138880,0.00629564,2383.9,2383.7,0.41952]
[1725549139277,0.00629564,2383.9,2383.6,0.41954]
[1725549139670,0.00629564,2383.9,2383.7,0.41952]
[1725549139875,0.00629564,2383.9,2383.4,3.87]
[1725549140177,0.00629564,2383.9,2383.7,0.41952]
[1725549140379,0.00629564,2383.9,2383.8,0.41951]
[1725549141279,0.00629564,2383.9,2383.4,3.87]
[1725549141479,3.21409564,2383.9,2383.2,7.0778]
[1725549141673,0.41952,2383.8,2383.4,0.41958]
[1725549141874,3.63360564,2383.9,2383.5,0.41956]
[1725549142077,0.41953,2383.8,2383.4,0.41958]
[1725549142379,0.41952,2383.8,2383.4,0.41957]
[1725549142584,0.41953,2383.8,2383.4,0.41958]
[1725549142979,0.41955,2383.6,2383.3,0.4196]
[1725549143183,0.41953,2383.8,2383.4,0.41958]
[1725549143489,0.41951,2383.8,2383.5,0.41957]
[1725549144182,0.00629564,2383.9,2383.8,0.41951]
[1725549144587,0.00629564,2383.9,2383.8,7.82251]
[1725549144783,0.00629564,2383.9,2383.8,12.73011]
[1725549145785,0.00629564,2383.9,2383.8,13.7789]
[1725549145982,0.00629564,2383.9,2383.8,12.73011]
[1725549146781,0.00629564,2383.9,2383.8,13.7789]
[1725549147289,0.00629564,2383.9,2383.8,12.73011]
[1725549148181,0.00629564,2383.9,2383.8,20.01156512]
[1725549149383,5.78006218,2384.7,2384.0,1.04868]
[1725549149685,3.62717,2384.7,2384.4,0.4194]
[1725549149987,1.2959,2384.8,2384.6,0.41937]
[1725549150192,8.10189218,2385.0,2384.9,0.41932]
[1725549150381,2.7412,2385.0,2384.9,0.41932]
[1725549150687,2.7412,2385.0,2384.7,0.21661258]
[1725549150688,0.00629564,2385.2,2385.1,0.41929]
[1725549151084,0.00629564,2385.2,2385.1,4.61209]
[1725549151285,0.00629564,2385.2,2385.1,0.41929]
[1725549151480,0.00629564,2385.2,2384.9,4.91829]
[1725549151481,0.00629564,2385.2,2385.0,0.4193]
[1725549151686,0.41932,2385.0,2384.7,3.87629564]
[1725549151888,4.67549,2384.8,2384.7,0.00629564]
[1725549152283,1.46769,2384.8,2384.7,0.00629564]
[1725549152488,0.41934,2384.8,2384.7,0.00629564]